fUSD/lending_fUSD_20251225
["ID","MTS","AMOUNT","RATE_DAILY","PERIOD"]
[399782919,1766673052433,-396.36220514,0.00016901,2]
[399782920,1766673052442,-189.76876158,0.00016901,2]
[399782921,1766673052452,-150.0,0.00016916,2]
[399782922,1766673052462,-257.56632954,0.00016918,2]
[399782923,1766673052473,-156.21307766,0.00016918,2]
[399782924,1766673052482,-292.93832902,0.00016918,2]
[399782925,1766673052492,-203.57359453,0.00016918,2]
[399782926,1766673052502,-396.36220514,0.00016918,2]
[399782927,1766673052514,-189.76876158,0.00016918,2]
[399782928,1766673052524,-185.95139,0.00016918,2]
[399782929,1766673052534,-151.0,0.00016918,2]
[399782930,1766673052544,-151.0,0.00016918,2]
[399782931,1766673052554,-151.0,0.00016918,2]
[399782932,1766673052563,-150.0,0.0001692,2]
[399782933,1766673052574,-264.0,0.00016933,2]
[399782934,1766673052583,-257.56632954,0.00016935,2]
[399782935,1766673052593,-156.21307766,0.00016935,2]
[399782936,1766673052603,-292.93832902,0.00016935,2]
[399782937,1766673052612,-203.57359453,0.00016935,2]
[399782938,1766673052621,-396.36220514,0.00016935,2]
[399782939,1766673052632,-189.76876158,0.00016935,2]
[399782940,1766673052642,-150.0,0.00016935,2]
[399782941,1766673052651,-150.0,0.00016942,2]
[399782942,1766673052661,-335.0,0.00016949,2]
[399782943,1766673052671,-257.56632954,0.00016952,2]
[399782944,1766673052681,-156.21307766,0.00016952,2]
[399782945,1766673052691,-292.93832902,0.00016952,2]
[399782946,1766673052700,-203.57359453,0.00016952,2]
[399782947,1766673052710,-396.36220514,0.00016952,2]
[399782948,1766673052724,-189.76876158,0.00016952,2]
[399782949,1766673052733,-150.0,0.00016964,2]
[399782950,1766673052743,-257.56632954,0.00016969,2]
[399782951,1766673052753,-156.21307766,0.00016969,2]
[399782952,1766673052764,-292.93832902,0.00016969,2]
[399782953,1766673052774,-203.57359453,0.00016969,2]
[399782954,1766673052783,-396.36220514,0.00016969,2]
[399782955,1766673052795,-189.76876158,0.00016969,2]
[399782956,1766673052806,-500.0,0.0001697,2]
[399782957,1766673052816,-800.78551976,0.0001697,2]
[399782958,1766673052826,-500.0,0.0001697,2]
[399782959,1766673052835,-500.0,0.00016973,2]
[399782960,1766673052844,-150.0,0.00016973,2]
[399782961,1766673052854,-151.0,0.00016986,2]
[399782962,1766673052864,-413.003476,0.00016986,2]
[399782963,1766673052873,-413.003476,0.00016986,2]
[399782964,1766673052883,-413.003476,0.00016986,2]
[399782965,1766673052893,-413.003476,0.00016986,2]
[399782966,1766673052903,-151.0,0.00016986,2]
[399782967,1766673052917,-151.0,0.00016986,2]
[399782968,1766673052927,-151.0,0.00016986,2]
[399782969,1766673052937,-151.0,0.00016986,2]
[399782970,1766673052947,-151.0,0.00016986,2]
[399782971,1766673052957,-52287.96,0.00016986,2]
[399782972,1766673052967,-257.56632954,0.00016986,2]
[399782973,1766673052977,-156.21307766,0.00016986,2]
[399782974,1766673052987,-292.93832902,0.00016986,2]
[399782975,1766673052998,-203.57359453,0.00016986,2]
[399782976,1766673053008,-396.36220514,0.00016986,2]
[399782977,1766673053018,-216.83783771,0.00016986,2]
[399782978,1766673053028,-189.76876158,0.00016986,2]
[399782979,1766673053038,-250.03401256,0.00016986,2]
[399782980,1766673053047,-169.35594183,0.00016986,2]
[399782981,1766673053057,-195.90301911,0.00016986,2]
[399782982,1766673053068,-167.87580032,0.00016986,2]
[399782983,1766673053078,-150.0,0.0001699,2]
[399782984,1766673053088,-362.49188478,0.0001699,2]
[399782985,1766673053097,-362.49188478,0.0001699,2]
[399782986,1766673053111,-1060.87558749,0.00016999,5]
[399782987,1766673053121,-300.0,0.00016999,2]
[399782988,1766673053130,-666.0,0.00016999,2]
[399782989,1766673053141,-300.0,0.00016999,2]
[399782990,1766673053151,-300.0,0.00016999,2]
[399782991,1766673053161,-666.0,0.00016999,2]
[399782992,1766673053171,-66207.54766565,0.00017,2]
[399782993,1766673053391,-427.39638274,0.00017,2]
[399782994,1766673053580,-631.60064921,0.000139,2]
[399782995,1766673053592,-11190.16104897,0.00017,2]
[399782996,1766673053605,-697.4805799,0.00017,2]
[399782997,1766673053619,-345.69,0.00017,2]
[399782998,1766673053722,-55.7491029,0.00017,2]
[399782999,1766673053736,-5332.28665402,0.00017,2]
[399783000,1766673054445,-436.86018137,0.00013981,2]
[399783001,1766673054459,-63.13981863,0.00013981,2]
[399783002,1766673054471,-500.0,0.00013981,2]
[399783003,1766673054482,-500.0,0.00013981,2]
[399783004,1766673054493,-500.0,0.00013981,2]
[399783005,1766673054505,-500.0,0.00013981,2]
[399783006,1766673054516,-500.0,0.00013981,2]
[399783007,1766673054527,-500.0,0.00013981,2]
[399783008,1766673054539,-500.0,0.00013981,2]
[399783009,1766673054549,-500.0,0.00013981,2]
[399783010,1766673054559,-500.0,0.00013981,2]
[399783011,1766673054570,-500.0,0.00013981,2]
[399783012,1766673054580,-500.0,0.00013981,2]
[399783013,1766673054591,-500.0,0.00013981,2]
[399783014,1766673054602,-393.20680207,0.00013981,2]
[399783015,1766673054613,-500.0,0.00013981,2]
[399783016,1766673054623,-500.0,0.00013981,2]
[399783017,1766673054635,-500.0,0.00013981,2]
[399783018,1766673054646,-500.0,0.00013981,2]
[399783019,1766673054658,-500.0,0.00013981,2]
[399783020,1766673054669,-500.0,0.00013981,2]
[399783021,1766673054680,-500.0,0.00013981,2]
[399783022,1766673054692,-500.0,0.00013981,2]
[399783023,1766673054703,-500.0,0.00013981,2]
[399783024,1766673054715,-500.0,0.00013981,2]
[399783025,1766673054729,-500.0,0.00013981,2]
[399783026,1766673054739,-500.0,0.00013981,2]
[399783027,1766673054750,-500.0,0.00013981,2]
[399783028,1766673054761,-631.60064915,0.00014329,2]
[399783029,1766673054772,-128.32937955,0.0001542,2]
[399783030,1766673066432,237.84,0.00032877,120]
[399783034,1766673215507,271.0,0.00032876,120]
[399783036,1766673337733,-491.75338394,0.00013663,2]
[399783038,1766673379198,10000.0,0.00012,2]
[399783040,1766673401008,1301.15,0.00012,2]
[399783048,1766673678338,86.7377462,0.00013741,4]
[399783049,1766673678367,1402.73913083,0.00013741,4]
[399783072,1766674231615,-166.66,0.00012492,2]
[399783073,1766674231627,-250.0,0.00012623,2]
[399783074,1766674231639,-83.34,0.00012755,2]
[399783075,1766674231654,-83.32,0.00012755,2]
[399783076,1766674231665,-728.32281846,0.00012885,2]
[399783077,1766674231679,-871.67718154,0.00012885,2]
[399783078,1766674231694,-5.68281846,0.00012897,2]
[399783079,1766674231708,-376.06122889,0.00012897,2]
[399783080,1766674231719,-200.0,0.00012902,2]
[399783081,1766674231730,-1000.0,0.00012953,2]
[399783082,1766674231741,-166.66,0.00013018,2]
[399783083,1766674231753,-500.0,0.00013268,2]
[399783084,1766674231765,-166.66,0.00013281,2]
[399783085,1766674231778,-1500.0,0.00013538,2]
[399783086,1766674231791,-166.66,0.00013544,2]
[399783087,1766674231803,-196.80661606,0.00013663,2]
[399783088,1766674231815,-650.0,0.00013698,2]
[399783089,1766674231830,-300.0,0.00013698,2]
[399783090,1766674231845,-300.0,0.00013698,2]
[399783092,1766674231856,-1200.0,0.00013698,2]
[399783094,1766674231868,-1000.0,0.00013699,2]
[399783095,1766674231883,-761.01485998,0.00013699,2]
[399783096,1766674231895,-380.50742999,0.00013699,2]
[399783097,1766674231907,-190.25371499,0.00013699,2]
[399783098,1766674231920,-227.1663372,0.00013707,2]
[399783099,1766674231931,-6621.61796689,0.00013707,2]
[399783100,1766674231943,-552.65056804,0.00013707,2]
[399783101,1766674231955,-500.0,0.0001374,2]
[399783102,1766674231967,-500.0,0.0001374,2]
[399783103,1766674231980,-539.20992147,0.0001374,2]
[399783104,1766674231991,-500.0,0.0001374,2]
[399783105,1766674232002,-500.0,0.0001374,2]
[399783106,1766674232016,-500.0,0.0001374,2]
[399783107,1766674232028,-500.0,0.0001374,2]
[399783108,1766674232040,-500.0,0.0001374,2]
[399783109,1766674232051,-500.0,0.0001374,2]
[399783110,1766674232063,-500.0,0.0001374,2]
[399783111,1766674232079,-500.0,0.0001374,2]
[399783112,1766674232092,-500.0,0.0001374,2]
[399783113,1766674232104,-500.0,0.0001374,2]
[399783114,1766674232116,-500.0,0.0001374,2]
[399783115,1766674232127,-500.0,0.0001374,2]
[399783116,1766674232138,-500.0,0.0001374,2]
[399783117,1766674232149,-483.29733171,0.0001374,2]
[399783118,1766674232173,-16.70266829,0.0001374,2]
[399783119,1766674232184,-500.0,0.0001374,2]
[399783120,1766674232196,-500.0,0.0001374,2]
[399783121,1766674232207,-500.0,0.0001374,2]
[399783122,1766674232219,-500.0,0.0001374,2]
[399783123,1766674232235,-383.29733171,0.0001374,2]
[399783124,1766674232250,-116.70266829,0.0001374,2]
[399783125,1766674232262,-500.0,0.0001374,2]
[399783126,1766674232274,-500.0,0.0001374,2]
[399783127,1766674232286,-500.0,0.0001374,2]
[399783128,1766674232298,-500.0,0.0001374,2]
[399783129,1766674232310,-83.72350456,0.0001374,2]
[399783130,1766674232325,-416.27649544,0.0001374,2]
[399783131,1766674232338,-500.0,0.0001374,2]
[399783132,1766674232351,-500.0,0.0001374,2]
[399783133,1766674232361,-500.0,0.0001374,2]
[399783134,1766674232372,-193.36981954,0.0001374,2]
[399783135,1766674232386,-306.63018046,0.0001374,2]
[399783136,1766674232397,-500.0,0.0001374,2]
[399783137,1766674232408,-500.0,0.0001374,2]
[399783138,1766674232420,-343.36981954,0.0001374,2]
[399783139,1766674232433,-156.63018046,0.0001374,2]
[399783140,1766674232463,-500.0,0.0001374,2]
[399783141,1766674232477,-500.0,0.0001374,2]
[399783142,1766674232492,-500.0,0.0001374,2]
[399783143,1766674232508,-500.0,0.0001374,2]
[399783144,1766674232522,-298.54186734,0.0001374,2]
[399783145,1766674232536,-201.45813266,0.0001374,2]
[399783146,1766674232548,-77.80312449,0.0001374,2]
[399783147,1766674237748,-551.72055732,0.0001374,2]
[399783148,1766674237760,-500.0,0.0001374,2]
[399783149,1766674237772,-500.0,0.0001374,2]
[399783150,1766674237784,-500.0,0.0001374,2]
[399783151,1766674237796,-500.0,0.0001374,2]
[399783152,1766674237809,-500.0,0.0001374,2]
[399783153,1766674237821,-500.0,0.0001374,2]
[399783154,1766674237833,-500.0,0.0001374,2]
[399783155,1766674237844,-500.0,0.0001374,2]
[399783156,1766674237857,-500.0,0.0001374,2]
[399783157,1766674237868,-262.95236819,0.0001374,2]
[399783158,1766674237879,-500.0,0.0001374,2]
[399783159,1766674237891,-150.0,0.0001374,2]
[399783160,1766674237904,-458.24,0.0001374,2]
[399783161,1766674237916,-195.0,0.00013741,2]
[399783162,1766674237929,-250.0,0.00013741,2]
[399783163,1766674237941,-600.0,0.00013741,2]
[399783164,1766674237952,-600.0,0.00013741,2]
[399783165,1766674237965,-600.0,0.00013741,2]
[399783166,1766674237976,-600.0,0.00013741,2]
[399783167,1766674237988,-600.0,0.00013741,2]
[399783168,1766674238001,-300.0,0.00013741,2]
[399783169,1766674238013,-300.0,0.00013741,2]
[399783170,1766674238025,-300.0,0.00013741,2]
[399783172,1766674238037,-300.0,0.00013741,2]
[399783174,1766674238049,-300.0,0.00013741,2]
[399783176,1766674238061,-2500.0,0.00013741,2]
[399783178,1766674238072,-2500.0,0.00013741,2]
[399783180,1766674238084,-2500.0,0.00013741,2]
[399783182,1766674238096,-2500.0,0.00013741,2]
[399783183,1766674238108,-2500.0,0.00013741,2]
[399783184,1766674238121,-195.0,0.00013741,2]
[399783185,1766674238133,-195.0,0.00013741,2]
[399783186,1766674238144,-151.73655621,0.00013741,2]
[399783187,1766674238156,-195.0,0.00013741,2]
[399783188,1766674238168,-195.0,0.00013741,2]
[399783189,1766674238180,-151.0,0.0001377,2]
[399783190,1766674238192,-151.0,0.0001377,2]
[399783191,1766674238204,-165.4969409,0.0001377,2]
[399783192,1766674238215,-3090.95595335,0.00013773,2]
[399783195,1766674238231,-304.0,0.00013773,2]
[399783196,1766674238245,-252.20002668,0.00013773,2]
[399783197,1766674238265,-15801.2485822,0.00013773,2]
[399783198,1766674238280,-500.0,0.00013773,2]
[399783199,1766674239781,-922.18333418,0.00013773,2]
[399783200,1766674239795,-500.0,0.00013773,2]
[399783201,1766674239866,-765.80058981,0.00013773,2]
[399783202,1766674239879,-8729.85355906,0.00013773,2]
[399783203,1766674239892,-420.86114321,0.00013773,2]
[399783204,1766674239904,-3391.7295467,0.00013773,2]
[399783205,1766674239969,-473.93335833,0.00013773,2]
[399783206,1766674239983,-2911.12206947,0.00013773,2]
[399783208,1766674239996,-961936.11183701,0.00013773,2]
[399783211,1766674240008,-166.66,0.00013807,2]
[399783213,1766674240019,-197.72643171,0.00013873,2]
[399783215,1766674240031,-2500.0,0.00013882,2]
[399783217,1766674240042,-200.0,0.00013902,2]
[399783219,1766674240053,-200.0,0.00013902,2]
[399783221,1766674240064,-207.4,0.00013902,2]
[399783223,1766674240074,-500.0,0.00013902,2]
[399783224,1766674240086,-500.0,0.00013902,2]
[399783225,1766674240097,-151.0,0.00013902,2]
[399783226,1766674240108,-500.0,0.00013902,2]
[399783228,1766674240119,-151.0,0.00013902,2]
[399783230,1766674240131,-615.40475298,0.00013902,2]
[399783233,1766674240142,-151.0,0.00013902,2]
[399783235,1766674240153,-151.0,0.00013902,2]
[399783237,1766674240180,-151.0,0.00013902,2]
[399783238,1766674240204,-151.0,0.00013902,2]
[399783240,1766674240222,-151.0,0.00013902,2]
[399783242,1766674240234,-151.0,0.00013902,2]
[399783244,1766674240244,-151.0,0.00013902,2]
[399783245,1766674240255,-500.0,0.00013902,2]
[399783246,1766674240266,-151.0,0.00013902,2]
[399783247,1766674240277,-500.0,0.00013902,2]
[399783248,1766674240287,-500.0,0.00013902,2]
[399783249,1766674240300,-151.0,0.00013902,2]
[399783250,1766674240311,-500.0,0.00013902,2]
[399783251,1766674240323,-500.0,0.00013902,2]
[399783252,1766674240337,-500.0,0.00013902,2]
[399783254,1766674240348,-500.0,0.00013902,2]
[399783255,1766674240359,-500.0,0.00013902,2]
[399783256,1766674240370,-626.72929824,0.00013902,2]
[399783257,1766674240383,-4224.86177798,0.00013904,2]
[399783258,1766674240395,-174.41916524,0.00013981,2]
[399783259,1766674240407,-441.6169063,0.00013981,2]
[399783260,1766674240418,-500.0,0.00013981,2]
[399783261,1766674240430,-500.0,0.00013981,2]
[399783262,1766674240442,-500.0,0.00013981,2]
[399783263,1766674240453,-500.0,0.00013981,2]
[399783264,1766674240465,-500.0,0.00013981,2]
[399783265,1766674240476,-500.0,0.00013981,2]
[399783266,1766674240487,-500.0,0.00013981,2]
[399783267,1766674240499,-500.0,0.00013981,2]
[399783268,1766674240510,-500.0,0.00013981,2]
[399783269,1766674240521,-500.0,0.00013981,2]
[399783270,1766674240532,-500.0,0.00013981,2]
[399783271,1766674240542,-500.0,0.00013981,2]
[399783272,1766674240554,-500.0,0.00013981,2]
[399783273,1766674240565,-500.0,0.00013981,2]
[399783274,1766674240576,-507.55739974,0.00013981,2]
[399783275,1766674240587,-500.0,0.00013981,2]
[399783276,1766674240599,-500.0,0.00013981,2]
[399783277,1766674240610,-500.0,0.00013981,2]
[399783278,1766674240621,-399.26186122,0.00013981,2]
[399783279,1766674240632,-180.57,0.00013981,2]
[399783280,1766674240644,-1120.9915878,0.00014004,2]
[399783281,1766674240656,-458.24,0.00014014,2]
[399783282,1766674240668,-6621.61796684,0.00014062,2]
[399783283,1766674240679,-552.65056801,0.00014163,2]
[399783284,1766674240691,-4224.8617779,0.00014237,2]
[399783285,1766674240702,-1000.0,0.00014277,2]
[399783286,1766674240713,-458.24,0.00014288,2]
[399783287,1766674240723,-6621.61796684,0.00014417,2]
[399783288,1766674240734,-1600.0,0.00014495,2]
[399783289,1766674240745,-9999.99,0.00014504,2]
[399783290,1766674240756,-733.92,0.00014504,2]
[399783291,1766674240767,-150.99,0.00014504,2]
[399783292,1766674240778,-299.99,0.00014504,2]
[399783293,1766674240789,-2212.12,0.00014504,2]
[399783294,1766674240801,-9999.99,0.00014504,2]
[399783295,1766674240811,-458.24,0.00014562,2]
[399783296,1766674240822,-4224.8617779,0.0001457,2]
[399783297,1766674240833,-1000.0,0.00014572,2]
[399783298,1766674240843,-552.65056801,0.00014619,2]
[399783299,1766674240854,-500.0,0.00014644,2]
[399783300,1766674240864,-500.0,0.00014644,2]
[399783301,1766674240874,-6621.61796684,0.00014771,2]
[399783302,1766674240885,-362.49188478,0.0001478,2]
[399783303,1766674240896,-578.20924308,0.0001479,2]
[399783304,1766674240906,-500.0,0.0001479,2]
[399783305,1766674240917,-500.0,0.0001479,2]
[399783306,1766674240928,-468.52172957,0.0001479,2]
[399783307,1766674240939,-500.0,0.0001479,2]
[399783308,1766674240949,-500.0,0.0001479,2]
[399783309,1766674240960,-500.0,0.0001479,2]
[399783310,1766674240970,-574.12855637,0.0001479,2]
[399783311,1766674240981,-500.0,0.0001479,2]
[399783312,1766674240991,-500.0,0.0001479,2]
[399783313,1766674241002,-500.0,0.0001479,2]
[399783314,1766674241013,-500.0,0.0001479,2]
[399783315,1766674241023,-500.0,0.0001479,2]
[399783316,1766674241035,-500.0,0.0001479,2]
[399783317,1766674241045,-500.0,0.0001479,2]
[399783318,1766674241056,-500.0,0.0001479,2]
[399783319,1766674241068,-283.18901002,0.0001479,2]
[399783320,1766674241080,-151.0,0.0001479,2]
[399783321,1766674241090,-620.0,0.0001479,2]
[399783322,1766674241102,-1500.0,0.0001479,2]
[399783323,1766674241113,-1000.0,0.0001479,2]
[399783324,1766674241124,-500.0,0.0001479,2]
[399783325,1766674241135,-6928.99380159,0.0001479,2]
[399783326,1766674241146,-500.0,0.0001479,2]
[399783327,1766674241157,-500.0,0.0001479,2]
[399783328,1766674241168,-500.0,0.0001479,2]
[399783329,1766674241179,-500.0,0.0001479,2]
[399783330,1766674241190,-500.0,0.0001479,2]
[399783331,1766674241200,-500.0,0.0001479,2]
[399783332,1766674241211,-322.6107,0.0001479,2]
[399783333,1766674241222,-250.0,0.0001479,2]
[399783334,1766674241234,-500.0,0.0001479,2]
[399783335,1766674241245,-250.0,0.0001479,2]
[399783336,1766674241665,-500.0,0.0001479,2]
[399783337,1766674241695,-250.0,0.0001479,2]
[399783338,1766674241711,-500.0,0.0001479,2]
[399783339,1766674241722,-250.0,0.0001479,2]
[399783340,1766674241732,-1500.0,0.0001479,2]
[399783341,1766674241742,-500.0,0.0001479,2]
[399783342,1766674241752,-250.0,0.0001479,2]
[399783343,1766674241762,-1500.0,0.0001479,2]
[399783344,1766674241772,-1500.0,0.0001479,2]
[399783345,1766674241782,-1500.0,0.0001479,2]
[399783346,1766674241792,-250.0,0.0001479,2]
[399783347,1766674241803,-1500.0,0.0001479,2]
[399783348,1766674241812,-250.0,0.0001479,2]
[399783349,1766674241823,-1500.0,0.0001479,2]
[399783350,1766674241834,-250.0,0.0001479,2]
[399783351,1766674241844,-1500.0,0.0001479,2]
[399783352,1766674241854,-250.0,0.0001479,2]
[399783353,1766674241864,-250.0,0.0001479,2]
[399783354,1766674241874,-1500.0,0.0001479,2]
[399783355,1766674241884,-250.0,0.0001479,2]
[399783356,1766674241894,-250.0,0.0001479,2]
[399783357,1766674241904,-1500.0,0.0001479,2]
[399783358,1766674241914,-250.0,0.0001479,2]
[399783359,1766674241924,-250.0,0.0001479,2]
[399783360,1766674241933,-1500.0,0.0001479,2]
[399783361,1766674241943,-200.0,0.0001479,2]
[399783362,1766674241953,-250.0,0.0001479,2]
[399783363,1766674241964,-250.0,0.0001479,2]
[399783364,1766674241974,-1500.0,0.0001479,2]
[399783365,1766674241984,-250.0,0.0001479,2]
[399783366,1766674241994,-250.0,0.0001479,2]
[399783367,1766674242005,-207.4,0.0001479,2]
[399783368,1766674242015,-215.0738,0.0001479,2]
[399783369,1766674242025,-250.0,0.0001479,2]
[399783370,1766674242034,-223.0315306,0.0001479,2]
[399783371,1766674242044,-250.0,0.0001479,2]
[399783372,1766674242054,-250.0,0.0001479,2]
[399783373,1766674242064,-231.28369723,0.0001479,2]
[399783374,1766674242074,-250.0,0.0001479,2]
[399783375,1766674242084,-250.0,0.0001479,2]
[399783376,1766674242094,-304.86226041,0.0001479,2]
[399783377,1766674242103,-250.0,0.0001479,2]
[399783378,1766674242114,-250.0,0.0001479,2]
[399783379,1766674242124,-260.99352058,0.0001479,2]
[399783380,1766674242134,-458.28,0.00014836,2]
[399783381,1766674242144,-255.0,0.00014853,2]
[399783382,1766674242154,-4224.8617779,0.00014903,2]
[399783383,1766674242164,-227.16633718,0.00014932,2]
[399783384,1766674242174,-420.0,0.00015011,2]
[399783385,1766674242184,-300.0,0.00015011,2]
[399783386,1766674242194,-1680.0,0.00015067,2]
[399783387,1766674242204,-552.65056801,0.00015075,2]
[399783388,1766674242214,-6621.61796684,0.00015126,2]
[399783389,1766674242224,-4224.8617779,0.00015236,2]
[399783390,1766674242234,-183.38649304,0.00015288,2]
[399783391,1766674242244,-156.21307766,0.00015288,2]
[399783392,1766674242255,-292.93832902,0.00015288,2]
[399783393,1766674242265,-257.56632954,0.00015288,2]
[399783394,1766674242275,-150.0,0.00015288,2]
[399783395,1766674242286,-150.0,0.00015288,2]
[399783396,1766674242297,-189.76876158,0.00015288,2]
[399783397,1766674242307,-150.0,0.00015288,2]
[399783398,1766674242317,-203.57359453,0.00015288,2]
[399783399,1766674242328,-150.0,0.00015288,2]
[399783400,1766674242340,-396.36220514,0.00015288,2]
[399783401,1766674242350,-150.0,0.00015288,2]
[399783402,1766674242360,-150.0,0.00015288,2]
[399783403,1766674242370,-150.0,0.00015288,2]
[399783404,1766674242381,-150.0,0.00015288,2]
[399783405,1766674242391,-150.0,0.00015288,2]
[399783406,1766674242402,-156.21307766,0.00015305,2]
[399783407,1766674242415,-292.93832902,0.00015305,2]
[399783408,1766674242425,-257.56632954,0.00015305,2]
[399783410,1766674242434,-189.76876158,0.00015305,2]
[399783412,1766674242444,-203.57359453,0.00015305,2]
[399783414,1766674242455,-396.36220514,0.00015305,2]
[399783416,1766674242464,-150.0,0.0001531,2]
[399783418,1766674242474,-150.0,0.00015322,2]
[399783419,1766674242485,-156.21307766,0.00015322,2]
[399783420,1766674242496,-292.93832902,0.00015322,2]
[399783421,1766674242506,-257.56632954,0.00015322,2]
[399783422,1766674242516,-189.76876158,0.00015322,2]
[399783423,1766674242526,-203.57359453,0.00015322,2]
[399783424,1766674242536,-396.36220514,0.00015322,2]
[399783425,1766674242547,-150.0,0.00015332,2]
[399783426,1766674242559,-150.0,0.00015334,2]
[399783427,1766674242571,-595.37131296,0.00015338,2]
[399783428,1766674242581,-156.21307766,0.00015339,2]
[399783429,1766674242591,-292.93832902,0.00015339,2]
[399783430,1766674242602,-257.56632954,0.00015339,2]
[399783431,1766674242613,-189.76876158,0.00015339,2]
[399783432,1766674242623,-203.57359453,0.00015339,2]
[399783433,1766674242633,-150.0,0.00015339,2]
[399783434,1766674242643,-396.36220514,0.00015339,2]
[399783435,1766674242654,-150.0,0.00015354,2]
[399783436,1766674242664,-150.0,0.00015356,2]
[399783437,1766674242674,-156.21307766,0.00015356,2]
[399783439,1766674242684,-292.93832902,0.00015356,2]
[399783440,1766674242695,-257.56632954,0.00015356,2]
[399783441,1766674242706,-189.76876158,0.00015356,2]
[399783443,1766674242716,-203.57359453,0.00015356,2]
[399783445,1766674242726,-396.36220514,0.00015356,2]
[399783447,1766674242736,-150.0,0.00015358,2]
[399783449,1766674242745,-156.21307766,0.00015373,2]
[399783451,1766674242755,-292.93832902,0.00015373,2]
[399783453,1766674242765,-257.56632954,0.00015373,2]
[399783455,1766674242775,-189.76876158,0.00015373,2]
[399783456,1766674242784,-203.57359453,0.00015373,2]
[399783458,1766674242793,-396.36220514,0.00015373,2]
[399783460,1766674242805,-150.0,0.00015376,2]
[399783463,1766674242815,-150.0,0.00015379,2]
[399783464,1766674242827,-150.0,0.0001539,2]
[399783465,1766674242836,-156.21307766,0.00015391,2]
[399783466,1766674242847,-292.93832902,0.00015391,2]
[399783467,1766674242856,-257.56632954,0.00015391,2]
[399783468,1766674242866,-189.76876158,0.00015391,2]
[399783469,1766674242876,-203.57359453,0.00015391,2]
[399783470,1766674242887,-150.0,0.00015391,2]
[399783471,1766674242897,-396.36220514,0.00015391,2]
[399783472,1766674242907,-150.0,0.00015398,2]
[399783473,1766674242916,-156.21307766,0.00015408,2]
[399783474,1766674242926,-292.93832902,0.00015408,2]
[399783475,1766674242936,-257.56632954,0.00015408,2]
[399783476,1766674242945,-189.76876158,0.00015408,2]
[399783477,1766674242955,-203.57359453,0.00015408,2]
[399783478,1766674242964,-396.36220514,0.00015408,2]
[399783479,1766674242974,-150.0,0.0001542,2]
[399783480,1766674242984,-150.0,0.00015424,2]
[399783481,1766674242994,-156.21307766,0.00015425,2]
[399783482,1766674243004,-292.93832902,0.00015425,2]
[399783483,1766674243014,-257.56632954,0.00015425,2]
[399783484,1766674243024,-189.76876158,0.00015425,2]
[399783485,1766674243035,-203.57359453,0.00015425,2]
[399783486,1766674243045,-396.36220514,0.00015425,2]
[399783487,1766674243055,-150.0,0.00015425,2]
[399783488,1766674243066,-150.0,0.00015429,2]
[399783489,1766674243077,-150.0,0.00015429,2]
[399783490,1766674243087,-156.21307766,0.00015442,2]
[399783491,1766674243097,-292.93832902,0.00015442,2]
[399783492,1766674243107,-257.56632954,0.00015442,2]
[399783493,1766674243117,-189.76876158,0.00015442,2]
[399783494,1766674243126,-203.57359453,0.00015442,2]
[399783495,1766674243136,-150.0,0.00015442,2]
[399783496,1766674243146,-396.36220514,0.00015442,2]
[399783497,1766674243156,-150.0,0.00015442,2]
[399783498,1766674243166,-150.0,0.00015458,2]
[399783499,1766674243176,-156.21307766,0.00015459,2]